Workbook

Sheet T. de b. d'indicateurs produits
A1: TABLEAU DE BORD D'INDICATEURS DE PRODUITS
A2: RECETTES DES PRODUITS
A28: VENTILATION DES RECETTES | I28: DÉLAIS DE MISE SUR LE MARCHÉ
A48: GAIN / PERTE
A75: En savoir plus sur les tableaux de bord dans Smartsheet

Sheet Données liées aux produits
A1: DONNÉES LIÉES AUX PRODUITS
A2: RECETTES DES PRODUITS
A3: NOM DU PRODUIT | C3: JANV. | D3: FÉV. | E3: MARS | F3: AVR. | G3: MAI | H3: JUIN | I3: JUIL. | J3: AOÛT | K3: SEPT. | L3: OCT. | M3: NOV. | N3: DÉC.
A4: PRODUIT 1 | C4: 47216 | D4: 244714 | E4: 246549 | F4: 235062 | G4: 162881 | H4: 96528 | I4: 29235 | J4: 25934 | K4: 233397 | L4: 78479 | M4: 184799 | N4: 248215
A5: PRODUIT 2 | C5: 19193 | D5: 32086 | E5: 93117 | F5: 45862 | G5: 62853 | H5: 55513 | I5: 22945 | J5: 15084 | K5: 45347 | L5: 57736 | M5: 20142 | N5: 45284
A6: PRODUIT 3 | C6: 222006 | D6: 180009 | E6: 99998 | F6: 215030 | G6: 195262 | H6: 272260 | I6: 128123 | J6: 163950 | K6: 213914 | L6: 180191 | M6: 111890 | N6: 260495
A7: PRODUIT 4 | C7: 39469 | D7: 58661 | E7: 60612 | F7: 99456 | G7: 39062 | H7: 42689 | I7: 53197 | J7: 23026 | K7: 33165 | L7: 88342 | M7: 8492 | N7: 34798
A8: PRODUIT 5 | C8: 234770 | D8: 46607 | E8: 232313 | F8: 255979 | G8: 282279 | H8: 83677 | I8: 254593 | J8: 50461 | K8: 239685 | L8: 106425 | M8: 229535 | N8: 200682
A9: PRODUIT 6 | C9: 201494 | D9: 186911 | E9: 203515 | F9: 234445 | G9: 181894 | H9: 160175 | I9: 266340 | J9: 175055 | K9: 94469 | L9: 209779 | M9: 275541 | N9: 268761
A10: PRODUIT 7 | C10: 274110 | D10: 149012 | E10: 260774 | F10: 107794 | G10: 35721 | H10: 225425 | I10: 62085 | J10: 130874 | K10: 194695 | L10: 19447 | M10: 31889 | N10: 31930
A11: PRODUIT 8 | C11: 82171 | D11: 204047 | E11: 44710 | F11: 100217 | G11: 115395 | H11: 145751 | I11: 15786 | J11: 37944 | K11: 38415 | L11: 70395 | M11: 25040 | N11: 67508
A13: VENTILATION DES RECETTES | L13: DÉLAIS DE MISE SUR LE MARCHÉ
B14: PRODUIT 1 | C14: PRODUIT 2 | D14: PRODUIT 3 | E14: PRODUIT 4 | F14: PRODUIT 5 | G14: PRODUIT 6 | H14: PRODUIT 7 | I14: PRODUIT 8 | J14: TOUS | M14: NOUVEAU PRODUIT | N14: PRODUIT EXISTANT
A15: REC. ANNUELLES | B15: =SUM(C4:N4) -> 1833009 | C15: =SUM(C5:N5) -> 515162 | D15: =SUM(C6:N6) -> 2243128 | E15: =SUM(C7:N7) -> 580969 | F15: =SUM(C8:N8) -> 2217006 | G15: =SUM(C9:N9) -> 2458379 | H15: =SUM(C10:N10) -> 1523756 | I15: =SUM(C11:N11) -> 947379 | J15: =SUM(B15:I15) -> 12318788 | L15: JOURS | M15: 57.6 | N15: 22.4
A16: POURCENTAGE | B16: =B15/J15 -> 0.1487978363 | C16: =C15/J15 -> 0.04181921144 | D16: =D15/J15 -> 0.1820899913 | E16: =E15/J15 -> 0.04716121424 | F16: =F15/J15 -> 0.1799694905 | G16: =G15/J15 -> 0.1995633824 | H16: =H15/J15 -> 0.1236936621 | I16: =I15/J15 -> 0.07690521178 | J16: =SUM(B16:I16) -> 1 | L16: OBJECTIF | M16: 55 | N16: 20
A18: GAIN / PERTE
B19: PRODUIT 1 | C19: PRODUIT 2 | D19: PRODUIT 3 | E19: PRODUIT 4 | F19: PRODUIT 5 | G19: PRODUIT 6 | H19: PRODUIT 7 | I19: PRODUIT 8 | J19: TOUS
A20: GAIN | B20: 0.73 | C20: 0.75 | D20: 0.91 | E20: 0.85 | F20: 0.89 | G20: 0.82 | H20: 0.28 | I20: 0.84 | J20: =SUM(B20:I20)/8 -> 0.75875
A21: PERTE | B21: =1-B20 -> 0.27 | C21: =1-C20 -> 0.25 | D21: 0.09 | E21: 0.15 | F21: 0.11 | G21: 0.18 | H21: 0.72 | I21: 0.16 | J21: =SUM(B21:I21)/8 -> 0.24125
